[Event "*** SCC Grand Prix: Titled Tuesday Blitz"]
[Site "Chess.com"]
[Date "2020.07.07"]
[Round "7"]
[White "Smile2005"]
[Black "Falia-p"]
[Result "0-1"]
[WhiteElo "2450"]
[BlackElo "2319"]
[TimeControl "180+1"]
[EndTime "11:19:53 PDT"]
[Termination "Falia-p won by resignation"]

1. b3 {[%clk 0:03:00]} 1... Nf6 {[%clk 0:02:50.8]} 2. Bb2 {[%clk 0:02:59.9]}
2... g6 {[%clk 0:02:51]} 3. Bxf6 {[%clk 0:02:57.9]} 3... exf6 {[%clk 0:02:50.8]}
4. e3 {[%clk 0:02:58.3]} 4... d5 {[%clk 0:02:48.3]} 5. d4 {[%clk 0:02:58.2]}
5... c6 {[%clk 0:02:48.3]} 6. c4 {[%clk 0:02:57.9]} 6... Be6 {[%clk 0:02:44.6]}
7. Nc3 {[%clk 0:02:57.2]} 7... h5 {[%clk 0:02:40]} 8. h4 {[%clk 0:02:49.2]} 8...
Bb4 {[%clk 0:02:39.3]} 9. Rc1 {[%clk 0:02:48.4]} 9... Qa5 {[%clk 0:02:38.9]} 10.
Qd2 {[%clk 0:02:39.9]} 10... Nd7 {[%clk 0:02:31.2]} 11. cxd5 {[%clk 0:02:37.5]}
11... cxd5 {[%clk 0:02:28.9]} 12. Nge2 {[%clk 0:02:36.4]} 12... Rc8 {[%clk
0:02:26.8]} 13. g3 {[%clk 0:02:36]} 13... O-O {[%clk 0:02:24.3]} 14. Bg2 {[%clk
0:02:34.8]} 14... Bg4 {[%clk 0:02:24.2]} 15. f3 {[%clk 0:02:19.6]} 15... Be6
{[%clk 0:02:20.6]} 16. Kf2 {[%clk 0:02:18.6]} 16... Ba3 {[%clk 0:02:17.7]} 17.
Rcd1 {[%clk 0:02:01.9]} 17... Bb4 {[%clk 0:02:14.3]} 18. Rc1 {[%clk 0:01:52.3]}
18... Rc6 {[%clk 0:02:05.5]} 19. Qd3 {[%clk 0:01:43.6]} 19... Ba3 {[%clk
0:01:58.9]} 20. Rcd1 {[%clk 0:01:40.4]} 20... Bb4 {[%clk 0:01:54]} 21. Rc1
{[%clk 0:01:37.8]} 21... Rfc8 {[%clk 0:01:51.9]} 22. Na4 {[%clk 0:01:31.6]}
22... Bf5 {[%clk 0:01:45.1]} 23. e4 {[%clk 0:01:28.3]} 23... dxe4 {[%clk
0:01:40.4]} 24. fxe4 {[%clk 0:01:26]} 24... Bg4 {[%clk 0:01:28.7]} 25. Rxc6
{[%clk 0:01:08.9]} 25... Rxc6 {[%clk 0:01:23.2]} 26. e5 {[%clk 0:00:57.7]} 26...
fxe5 {[%clk 0:01:17.5]} 27. Bxc6 {[%clk 0:00:56.7]} 27... bxc6 {[%clk
0:01:17.3]} 28. Rc1 {[%clk 0:00:45]} 28... Bxe2 {[%clk 0:01:08.8]} 29. Qxe2
{[%clk 0:00:44.2]} 29... exd4 {[%clk 0:01:03.1]} 30. Rxc6 {[%clk 0:00:41.6]}
30... Ne5 {[%clk 0:00:49.9]} 31. Rc8+ {[%clk 0:00:38.3]} 31... Kg7 {[%clk
0:00:46]} 32. Rc5 {[%clk 0:00:20.9]} 32... Ng4+ {[%clk 0:00:17.7]} 33. Qxg4
{[%clk 0:00:20.4]} 33... Bxc5 {[%clk 0:00:15.1]} 34. Nxc5 {[%clk 0:00:11.5]}
34... Qxc5 {[%clk 0:00:14.5]} 35. Kf1 {[%clk 0:00:11.1]} 35... Qc1+ {[%clk
0:00:13.8]} 36. Kf2 {[%clk 0:00:10]} 36... Qe3+ {[%clk 0:00:13.7]} 37. Kf1
{[%clk 0:00:09.2]} 37... d3 {[%clk 0:00:14.1]} 38. Qf4 {[%clk 0:00:04.8]} 38...
Qxf4+ {[%clk 0:00:13.3]} 39. gxf4 {[%clk 0:00:04.8]} 39... Kf6 {[%clk
0:00:14.2]} 40. Ke1 {[%clk 0:00:04]} 40... Kf5 {[%clk 0:00:15.1]} 41. Kd2 {[%clk
0:00:04.5]} 41... Kxf4 {[%clk 0:00:13.9]} 42. Kxd3 {[%clk 0:00:04.1]} 42... Ke5
{[%clk 0:00:14]} 43. b4 {[%clk 0:00:03.9]} 43... Kd5 {[%clk 0:00:14.1]} 44. a4
{[%clk 0:00:04.2]} 44... f6 {[%clk 0:00:13]} 45. Kc3 {[%clk 0:00:04]} 45... g5
{[%clk 0:00:13.2]} 46. hxg5 {[%clk 0:00:03]} 46... fxg5 {[%clk 0:00:14.1]} 0-1

[Event "*** SCC Grand Prix: Titled Tuesday Blitz"]
[Site "Chess.com"]
[Date "2020.07.07"]
[Round "7"]
[White "sewin16"]
[Black "Legendinunknown"]
[Result "1/2-1/2"]
[WhiteElo "2416"]
[BlackElo "2553"]
[TimeControl "180+1"]
[EndTime "11:19:54 PDT"]
[Termination "Game drawn by repetition"]

1. e4 {[%clk 0:03:00.9]} 1... c5 {[%clk 0:02:58.1]} 2. Nf3 {[%clk 0:03:00.5]}
2... d6 {[%clk 0:02:57.9]} 3. d4 {[%clk 0:03:00.8]} 3... cxd4 {[%clk 0:02:57.7]}
4. Nxd4 {[%clk 0:03:01.7]} 4... Nf6 {[%clk 0:02:58.2]} 5. Nc3 {[%clk 0:03:01.7]}
5... a6 {[%clk 0:02:57.6]} 6. Bg5 {[%clk 0:03:02.1]} 6... e6 {[%clk 0:02:55.6]}
7. Qe2 {[%clk 0:03:01.5]} 7... Be7 {[%clk 0:02:55.3]} 8. O-O-O {[%clk
0:03:01.1]} 8... Qc7 {[%clk 0:02:53.4]} 9. f4 {[%clk 0:03:00.2]} 9... Nbd7
{[%clk 0:02:51.9]} 10. g4 {[%clk 0:02:59.7]} 10... b5 {[%clk 0:02:50.7]} 11. Bg2
{[%clk 0:02:59.2]} 11... Bb7 {[%clk 0:02:50.5]} 12. e5 {[%clk 0:02:59.1]} 12...
Bxg2 {[%clk 0:02:28.9]} 13. Qxg2 {[%clk 0:02:57.2]} 13... O-O {[%clk 0:02:23.6]}
14. exf6 {[%clk 0:02:56.1]} 14... gxf6 {[%clk 0:02:24.5]} 15. Bh6 {[%clk
0:02:55]} 15... Rfc8 {[%clk 0:02:23.4]} 16. f5 {[%clk 0:02:38.2]} 16... b4
{[%clk 0:02:15.6]} 17. g5 {[%clk 0:02:36.7]} 17... Kh8 {[%clk 0:02:10.5]} 18.
gxf6 {[%clk 0:02:16.8]} 18... Bxf6 {[%clk 0:02:08.6]} 19. Ne4 {[%clk 0:02:04.8]}
19... Rg8 {[%clk 0:02:07.2]} 20. Qd2 {[%clk 0:01:56.2]} 20... Be5 {[%clk
0:02:04.3]} 21. fxe6 {[%clk 0:01:55.2]} 21... fxe6 {[%clk 0:02:02.6]} 22. Kb1
{[%clk 0:01:41.9]} 22... Qc4 {[%clk 0:01:55.4]} 23. Ng5 {[%clk 0:01:25.4]} 23...
Rg6 {[%clk 0:01:51.9]} 24. Nf7+ {[%clk 0:01:20.7]} 24... Kg8 {[%clk 0:01:50.1]}
25. Nxe5 {[%clk 0:01:18.6]} 25... Nxe5 {[%clk 0:01:49.2]} 26. Rhg1 {[%clk
0:01:14.8]} 26... Rc8 {[%clk 0:01:47.9]} 27. Rxg6+ {[%clk 0:01:11.1]} 27... Nxg6
{[%clk 0:01:46.4]} 28. Qf2 {[%clk 0:00:59.7]} 28... e5 {[%clk 0:01:37]} 29. Qf6
{[%clk 0:00:45.8]} 29... Qf7 {[%clk 0:01:34.5]} 30. Qxf7+ {[%clk 0:00:43.6]}
30... Kxf7 {[%clk 0:01:35.4]} 31. Nf5 {[%clk 0:00:43.8]} 31... Ke6 {[%clk
0:01:34.1]} 32. Ne3 {[%clk 0:00:32.2]} 32... Ne7 {[%clk 0:01:31.6]} 33. Bg5
{[%clk 0:00:29.8]} 33... Nf5 {[%clk 0:01:29.2]} 34. Nxf5 {[%clk 0:00:27.2]}
34... Kxf5 {[%clk 0:01:30.1]} 35. Be7 {[%clk 0:00:26.6]} 35... Ke6 {[%clk
0:01:29.2]} 36. Bh4 {[%clk 0:00:21.3]} 36... Rg8 {[%clk 0:01:26.9]} 37. Bg3
{[%clk 0:00:21.4]} 37... h5 {[%clk 0:01:25.1]} 38. b3 {[%clk 0:00:20.7]} 38...
Rg4 {[%clk 0:01:24]} 39. Kb2 {[%clk 0:00:18.3]} 39... h4 {[%clk 0:01:23.7]} 40.
Bf2 {[%clk 0:00:18.5]} 40... Rf4 {[%clk 0:01:22.6]} 41. Bg1 {[%clk 0:00:18.3]}
41... Re4 {[%clk 0:01:21.4]} 42. a3 {[%clk 0:00:17.9]} 42... a5 {[%clk
0:01:20.3]} 43. axb4 {[%clk 0:00:17.9]} 43... axb4 {[%clk 0:01:21.2]} 44. Rd3
{[%clk 0:00:16.7]} 44... Re1 {[%clk 0:01:18.1]} 45. Bf2 {[%clk 0:00:16.2]} 45...
Re2 {[%clk 0:01:16.4]} 46. Bxh4 {[%clk 0:00:16.5]} 46... Rxh2 {[%clk 0:01:16.1]}
47. Be1 {[%clk 0:00:17]} 47... d5 {[%clk 0:01:13.5]} 48. Bxb4 {[%clk 0:00:17]}
48... d4 {[%clk 0:01:13.6]} 49. Ba5 {[%clk 0:00:15.6]} 49... Kd5 {[%clk
0:01:12.9]} 50. Bb6 {[%clk 0:00:15.7]} 50... Re2 {[%clk 0:01:11.3]} 51. b4
{[%clk 0:00:15.8]} 51... Kc4 {[%clk 0:01:10.9]} 52. Bc5 {[%clk 0:00:16.1]} 52...
Rg2 {[%clk 0:01:07.5]} 53. Rd1 {[%clk 0:00:15.8]} 53... Re2 {[%clk 0:01:06]} 54.
Rd3 {[%clk 0:00:15.4]} 54... Rg2 {[%clk 0:01:06]} 55. Rd1 {[%clk 0:00:14.6]}
55... Re2 {[%clk 0:01:05.7]} 56. Bd6 {[%clk 0:00:14.8]} 56... e4 {[%clk
0:01:05]} 57. Bc5 {[%clk 0:00:13.8]} 57... d3 {[%clk 0:01:05.1]} 58. Rc1 {[%clk
0:00:13.3]} 58... e3 {[%clk 0:01:01]} 59. Bxe3 {[%clk 0:00:10.6]} 59... Rxe3
{[%clk 0:01:00]} 60. cxd3+ {[%clk 0:00:10.3]} 60... Kxb4 {[%clk 0:01:00.1]} 61.
Kc2 {[%clk 0:00:09.7]} 61... Re2+ {[%clk 0:00:59.2]} 62. Kd1 {[%clk 0:00:09.9]}
62... Rh2 {[%clk 0:00:59.2]} 63. Rc4+ {[%clk 0:00:10.4]} 63... Kb5 {[%clk
0:00:58.8]} 64. Ke1 {[%clk 0:00:10.6]} 64... Ra2 {[%clk 0:00:58.2]} 65. Kd1
{[%clk 0:00:10.8]} 65... Rh2 {[%clk 0:00:58.3]} 66. Kc1 {[%clk 0:00:10.9]} 66...
Rg2 {[%clk 0:00:58.3]} 67. Kd1 {[%clk 0:00:11.3]} 67... Rh2 {[%clk 0:00:58.5]}
1/2-1/2

[Event "*** SCC Grand Prix: Titled Tuesday Blitz"]
[Site "Chess.com"]
[Date "2020.07.07"]
[Round "7"]
[White "AlexSuv"]
[Black "alexrustemov"]
[Result "0-1"]
[WhiteElo "2567"]
[BlackElo "2732"]
[TimeControl "180+1"]
[EndTime "11:19:56 PDT"]
[Termination "alexrustemov won by resignation"]

1. d4 {[%clk 0:03:00.9]} 1... f5 {[%clk 0:02:58.9]} 2. g3 {[%clk 0:03:00.6]}
2... Nf6 {[%clk 0:02:59.2]} 3. Bg2 {[%clk 0:03:01]} 3... d6 {[%clk 0:02:59.9]}
4. Nf3 {[%clk 0:03:00.1]} 4... g6 {[%clk 0:03:00.6]} 5. O-O {[%clk 0:03:00.4]}
5... Bg7 {[%clk 0:03:01.3]} 6. c4 {[%clk 0:03:01.1]} 6... O-O {[%clk 0:03:01.8]}
7. Nc3 {[%clk 0:03:01.7]} 7... Nc6 {[%clk 0:03:02.4]} 8. d5 {[%clk 0:02:58]}
8... Na5 {[%clk 0:03:02.2]} 9. Qd3 {[%clk 0:02:58.1]} 9... c5 {[%clk 0:03:01.2]}
10. Rb1 {[%clk 0:02:37.4]} 10... a6 {[%clk 0:02:57.9]} 11. b3 {[%clk 0:02:35.8]}
11... Rb8 {[%clk 0:02:56.3]} 12. Ng5 {[%clk 0:02:28.8]} 12... Ne8 {[%clk
0:02:53.6]} 13. Bb2 {[%clk 0:02:20.8]} 13... Nc7 {[%clk 0:02:52.5]} 14. e4
{[%clk 0:02:13.7]} 14... b5 {[%clk 0:02:52.1]} 15. exf5 {[%clk 0:02:07.2]} 15...
Bxf5 {[%clk 0:02:49.9]} 16. Be4 {[%clk 0:02:07.2]} 16... bxc4 {[%clk 0:02:45.1]}
17. bxc4 {[%clk 0:02:03.5]} 17... Rb4 {[%clk 0:02:45.6]} 18. Bxf5 {[%clk
0:01:56.7]} 18... Rxf5 {[%clk 0:02:46.5]} 19. f4 {[%clk 0:01:37]} 19... Nxc4
{[%clk 0:02:39.1]} 20. Ba1 {[%clk 0:01:36.2]} 20... Nb6 {[%clk 0:02:04.5]} 21.
Qe2 {[%clk 0:01:01]} 21... Bd4+ {[%clk 0:01:49.1]} 22. Kg2 {[%clk 0:00:56.3]}
22... Rxb1 {[%clk 0:01:20.8]} 23. Rxb1 {[%clk 0:00:54.8]} 23... Nbxd5 {[%clk
0:01:21.3]} 24. Nxd5 {[%clk 0:00:51.3]} 24... Rxd5 {[%clk 0:00:56.1]} 25. Ne6
{[%clk 0:00:50.9]} 25... Re5 {[%clk 0:00:35.4]} 26. fxe5 {[%clk 0:00:40.9]}
26... Nxe6 {[%clk 0:00:35.9]} 27. exd6 {[%clk 0:00:35.9]} 27... Qxd6 {[%clk
0:00:36.8]} 28. Re1 {[%clk 0:00:35.9]} 28... Kf7 {[%clk 0:00:36.2]} 29. Qf3+
{[%clk 0:00:33.1]} 29... Ke8 {[%clk 0:00:33.6]} 30. Qa8+ {[%clk 0:00:31.4]}
30... Nd8 {[%clk 0:00:28.7]} 31. Qe4 {[%clk 0:00:29.5]} 31... Kd7 {[%clk
0:00:26.2]} 32. Rd1 {[%clk 0:00:25.4]} 32... Nc6 {[%clk 0:00:25.9]} 33. Bb2
{[%clk 0:00:17.9]} 33... e5 {[%clk 0:00:24.8]} 34. Bc1 {[%clk 0:00:18.1]} 34...
Qe6 {[%clk 0:00:22.8]} 35. Rf1 {[%clk 0:00:17.3]} 35... Qxa2+ {[%clk 0:00:21.9]}
36. Kh1 {[%clk 0:00:17.6]} 36... Qe6 {[%clk 0:00:22.3]} 37. Qd3 {[%clk
0:00:17.7]} 37... Qd5+ {[%clk 0:00:20.6]} 38. Qf3 {[%clk 0:00:17.6]} 38... Qxf3+
{[%clk 0:00:19.8]} 39. Rxf3 {[%clk 0:00:18.5]} 39... Ke6 {[%clk 0:00:20.4]} 40.
Ra3 {[%clk 0:00:18]} 40... Nb4 {[%clk 0:00:19.7]} 41. Bd2 {[%clk 0:00:17.5]}
41... e4 {[%clk 0:00:19.2]} 42. Bxb4 {[%clk 0:00:17.3]} 42... cxb4 {[%clk
0:00:19.5]} 43. Rxa6+ {[%clk 0:00:18]} 43... Kd5 {[%clk 0:00:19.5]} 44. Kg2
{[%clk 0:00:18.5]} 44... b3 {[%clk 0:00:19.7]} 45. Ra8 {[%clk 0:00:16.7]} 45...
b2 {[%clk 0:00:17.8]} 46. Rb8 {[%clk 0:00:17.1]} 46... Kc4 {[%clk 0:00:18.4]}
47. Kf1 {[%clk 0:00:09.5]} 47... Kd3 {[%clk 0:00:18.4]} 48. h4 {[%clk
0:00:09.4]} 48... e3 {[%clk 0:00:16.7]} 49. g4 {[%clk 0:00:08.6]} 49... e2+
{[%clk 0:00:16.7]} 50. Ke1 {[%clk 0:00:09]} 50... Bc3+ {[%clk 0:00:16.8]} 0-1

[Event "*** SCC Grand Prix: Titled Tuesday Blitz"]
[Site "Chess.com"]
[Date "2020.07.07"]
[Round "7"]
[White "chito89"]
[Black "aleksandrovaleksei"]
[Result "1-0"]
[WhiteElo "2818"]
[BlackElo "2665"]
[TimeControl "180+1"]
[EndTime "11:19:57 PDT"]
[Termination "chito89 won by resignation"]

1. e4 {[%clk 0:03:00.9]} 1... e5 {[%clk 0:02:59.2]} 2. Nf3 {[%clk 0:02:59.9]}
2... Nc6 {[%clk 0:02:59.3]} 3. Bb5 {[%clk 0:02:55.7]} 3... Nf6 {[%clk
0:02:58.7]} 4. d3 {[%clk 0:02:54]} 4... d6 {[%clk 0:02:58.6]} 5. O-O {[%clk
0:02:52.8]} 5... Bd7 {[%clk 0:02:58.2]} 6. c4 {[%clk 0:02:50.9]} 6... g6 {[%clk
0:02:56.7]} 7. Nc3 {[%clk 0:02:49.8]} 7... Bg7 {[%clk 0:02:56.9]} 8. Nd5 {[%clk
0:02:46.6]} 8... Nxd5 {[%clk 0:02:46]} 9. cxd5 {[%clk 0:02:47.5]} 9... Ne7
{[%clk 0:02:46.1]} 10. Bxd7+ {[%clk 0:02:33.9]} 10... Qxd7 {[%clk 0:02:45.9]}
11. Bg5 {[%clk 0:02:27.8]} 11... O-O {[%clk 0:02:39.6]} 12. Rc1 {[%clk
0:02:27.8]} 12... f6 {[%clk 0:02:39.1]} 13. Be3 {[%clk 0:02:26.9]} 13... h6
{[%clk 0:02:32.3]} 14. Qb3 {[%clk 0:02:25.8]} 14... b6 {[%clk 0:02:29.3]} 15. d4
{[%clk 0:02:25.7]} 15... Kh7 {[%clk 0:02:27.9]} 16. dxe5 {[%clk 0:02:18.3]}
16... dxe5 {[%clk 0:02:24.8]} 17. Rfd1 {[%clk 0:01:19.1]} 17... Nc8 {[%clk
0:02:19.4]} 18. Qc3 {[%clk 0:01:15.6]} 18... Rf7 {[%clk 0:02:19]} 19. Qc6 {[%clk
0:01:09.8]} 19... Rb8 {[%clk 0:02:16.8]} 20. Qxd7 {[%clk 0:01:05.3]} 20... Rxd7
{[%clk 0:02:16.3]} 21. Nd2 {[%clk 0:01:05.5]} 21... Nd6 {[%clk 0:02:15.4]} 22.
f3 {[%clk 0:01:05.9]} 22... f5 {[%clk 0:02:06.4]} 23. Rc6 {[%clk 0:01:06.2]}
23... Rf8 {[%clk 0:02:06]} 24. Rdc1 {[%clk 0:01:03.2]} 24... Rff7 {[%clk
0:02:06.1]} 25. Nc4 {[%clk 0:01:00.8]} 25... Nxc4 {[%clk 0:02:05.8]} 26. R1xc4
{[%clk 0:00:58.4]} 26... a5 {[%clk 0:01:56.6]} 27. Re6 {[%clk 0:00:33.9]} 27...
Rfe7 {[%clk 0:01:53.4]} 28. Rcc6 {[%clk 0:00:26.7]} 28... Rxe6 {[%clk
0:01:50.3]} 29. Rxe6 {[%clk 0:00:18]} 29... fxe4 {[%clk 0:01:11.4]} 30. fxe4
{[%clk 0:00:18.9]} 30... g5 {[%clk 0:01:11.9]} 31. Bd2 {[%clk 0:00:19]} 31...
Kg8 {[%clk 0:01:07.8]} 32. Bc3 {[%clk 0:00:19.1]} 32... Kf7 {[%clk 0:01:04.6]}
33. Bxe5 {[%clk 0:00:18.4]} 33... Bxe5 {[%clk 0:01:04.1]} 34. Rxe5 {[%clk
0:00:19.3]} 34... c6 {[%clk 0:01:04.5]} 35. Kf2 {[%clk 0:00:15.4]} 35... cxd5
{[%clk 0:01:04.5]} 36. exd5 {[%clk 0:00:15.5]} 36... Kf6 {[%clk 0:00:52.9]} 37.
Re6+ {[%clk 0:00:15.3]} 37... Kf5 {[%clk 0:00:53.3]} 38. Rxh6 {[%clk 0:00:15.9]}
38... Rxd5 {[%clk 0:00:50]} 39. Rxb6 {[%clk 0:00:16.4]} 39... Ke4 {[%clk
0:00:39.4]} 40. Ke2 {[%clk 0:00:16.1]} 40... Rf5 {[%clk 0:00:32.2]} 41. Re6+
{[%clk 0:00:15.4]} 41... Kd4 {[%clk 0:00:31.9]} 42. Re3 {[%clk 0:00:15.7]} 42...
Rb5 {[%clk 0:00:28.7]} 43. Rd3+ {[%clk 0:00:14.6]} 43... Ke4 {[%clk 0:00:28.1]}
44. Rb3 {[%clk 0:00:14.5]} 44... Rc5 {[%clk 0:00:27.9]} 45. Rc3 {[%clk 0:00:15]}
45... Rb5 {[%clk 0:00:28]} 46. Rc4+ {[%clk 0:00:15.4]} 46... Ke5 {[%clk
0:00:25.1]} 47. b3 {[%clk 0:00:16.3]} 47... Rd5 {[%clk 0:00:24.4]} 48. Ra4
{[%clk 0:00:16.3]} 48... Kf5 {[%clk 0:00:21]} 49. h4 {[%clk 0:00:14.3]} 49... g4
{[%clk 0:00:19.1]} 50. g3 {[%clk 0:00:13.5]} 50... Re5+ {[%clk 0:00:19.1]} 51.
Kd3 {[%clk 0:00:12]} 51... Rd5+ {[%clk 0:00:17.5]} 52. Rd4 {[%clk 0:00:12.6]}
1-0

[Event "*** SCC Grand Prix: Titled Tuesday Blitz"]
[Site "Chess.com"]
[Date "2020.07.07"]
[Round "7"]
[White "Karina_Ivanova"]
[Black "awesomevishesh"]
[Result "0-1"]
[WhiteElo "2218"]
[BlackElo "2372"]
[TimeControl "180+1"]
[EndTime "11:19:58 PDT"]
[Termination "awesomevishesh won by resignation"]

1. d4 {[%clk 0:02:59.1]} 1... Nf6 {[%clk 0:02:58.4]} 2. Nf3 {[%clk 0:02:57.8]}
2... g6 {[%clk 0:02:58.3]} 3. g3 {[%clk 0:02:56.9]} 3... Bg7 {[%clk 0:02:58.9]}
4. Bg2 {[%clk 0:02:57]} 4... O-O {[%clk 0:02:59.8]} 5. O-O {[%clk 0:02:57.5]}
5... d6 {[%clk 0:03:00.7]} 6. c4 {[%clk 0:02:57.6]} 6... Nc6 {[%clk 0:03:01.3]}
7. Nc3 {[%clk 0:02:57.4]} 7... e5 {[%clk 0:03:01.9]} 8. d5 {[%clk 0:02:56.5]}
8... Nb8 {[%clk 0:03:01.8]} 9. e4 {[%clk 0:02:56.5]} 9... a5 {[%clk 0:03:01.7]}
10. Ne1 {[%clk 0:02:55.5]} 10... Na6 {[%clk 0:03:02.2]} 11. Nd3 {[%clk
0:02:55.5]} 11... Nd7 {[%clk 0:03:02.8]} 12. Be3 {[%clk 0:02:52.4]} 12... Ndc5
{[%clk 0:02:58]} 13. f3 {[%clk 0:02:43.8]} 13... f5 {[%clk 0:02:51.3]} 14. b3
{[%clk 0:02:39.2]} 14... Bd7 {[%clk 0:02:31.4]} 15. Qe2 {[%clk 0:02:30.5]} 15...
Nxd3 {[%clk 0:02:20.7]} 16. Qxd3 {[%clk 0:02:29.8]} 16... Nc5 {[%clk 0:02:20.8]}
17. Qc2 {[%clk 0:02:24.8]} 17... f4 {[%clk 0:02:10.3]} 18. Bf2 {[%clk
0:02:23.4]} 18... h5 {[%clk 0:02:06.4]} 19. a3 {[%clk 0:02:16.6]} 19... g5
{[%clk 0:01:54.7]} 20. b4 {[%clk 0:02:14.2]} 20... axb4 {[%clk 0:01:49.2]} 21.
axb4 {[%clk 0:02:13.7]} 21... Rxa1 {[%clk 0:01:43.7]} 22. Rxa1 {[%clk
0:02:13.1]} 22... Na6 {[%clk 0:01:44.2]} 23. Rb1 {[%clk 0:02:11.8]} 23... g4
{[%clk 0:01:41.9]} 24. Qe2 {[%clk 0:02:08.8]} 24... Qf6 {[%clk 0:01:35.9]} 25.
gxf4 {[%clk 0:01:54.6]} 25... Qxf4 {[%clk 0:01:16.5]} 26. fxg4 {[%clk
0:01:49.3]} 26... Bxg4 {[%clk 0:01:14.8]} 27. Qe3 {[%clk 0:01:46.4]} 27... Qf6
{[%clk 0:01:06]} 28. c5 {[%clk 0:01:36.8]} 28... Bh6 {[%clk 0:01:04.7]} 29. Qe1
{[%clk 0:01:36.2]} 29... Bf3 {[%clk 0:00:43.2]} 30. Qf1 {[%clk 0:01:14.3]} 30...
Qg6 {[%clk 0:00:37]} 31. Kh1 {[%clk 0:01:09.6]} 31... Bd2 {[%clk 0:00:26.1]} 32.
Rb3 {[%clk 0:00:58.1]} 32... Nxb4 {[%clk 0:00:12.6]} 33. Rxb4 {[%clk 0:00:52]}
33... Bxc3 {[%clk 0:00:12]} 34. Rb3 {[%clk 0:00:51.1]} 34... Bxg2+ {[%clk
0:00:06.6]} 35. Qxg2 {[%clk 0:00:51.1]} 35... Qxg2+ {[%clk 0:00:07.2]} 36. Kxg2
{[%clk 0:00:51.8]} 36... Bd4 {[%clk 0:00:04.1]} 37. Bxd4 {[%clk 0:00:50]} 37...
exd4 {[%clk 0:00:05]} 38. cxd6 {[%clk 0:00:50]} 38... cxd6 {[%clk 0:00:05.4]}
39. Rxb7 {[%clk 0:00:49.7]} 39... Rf4 {[%clk 0:00:05.6]} 40. Rd7 {[%clk
0:00:43.9]} 40... Rxe4 {[%clk 0:00:05.1]} 41. Rxd6 {[%clk 0:00:43.9]} 41... Kf7
{[%clk 0:00:05.3]} 42. Rh6 {[%clk 0:00:39.3]} 42... h4 {[%clk 0:00:05.1]} 43.
Kh3 {[%clk 0:00:37.3]} 43... d3 {[%clk 0:00:04.5]} 44. Rh7+ {[%clk 0:00:29.1]}
44... Kg6 {[%clk 0:00:04.1]} 45. Rb7 {[%clk 0:00:12.7]} 45... d2 {[%clk
0:00:03.7]} 46. Rb1 {[%clk 0:00:12.1]} 46... Re1 {[%clk 0:00:03.8]} 0-1

[Event "*** SCC Grand Prix: Titled Tuesday Blitz"]
[Site "Chess.com"]
[Date "2020.07.07"]
[Round "7"]
[White "Chessdreamer2020"]
[Black "sergiochess83"]
[Result "0-1"]
[WhiteElo "2598"]
[BlackElo "2833"]
[TimeControl "180+1"]
[EndTime "11:20:00 PDT"]
[Termination "sergiochess83 won on time"]

1. e4 {[%clk 0:02:58.7]} 1... c5 {[%clk 0:02:57.8]} 2. Nf3 {[%clk 0:02:58.6]}
2... d6 {[%clk 0:02:57.4]} 3. Bb5+ {[%clk 0:02:57.3]} 3... Nd7 {[%clk
0:02:56.7]} 4. d4 {[%clk 0:02:54.3]} 4... cxd4 {[%clk 0:02:52.6]} 5. Qxd4 {[%clk
0:02:53.7]} 5... a6 {[%clk 0:02:48.2]} 6. Be2 {[%clk 0:02:50.3]} 6... Ngf6
{[%clk 0:02:44.7]} 7. O-O {[%clk 0:02:50.3]} 7... e6 {[%clk 0:02:41.3]} 8. c4
{[%clk 0:02:46.4]} 8... Be7 {[%clk 0:02:41.2]} 9. Nc3 {[%clk 0:02:44.8]} 9...
O-O {[%clk 0:02:41.3]} 10. b3 {[%clk 0:02:38.7]} 10... b6 {[%clk 0:02:29.9]} 11.
Bb2 {[%clk 0:02:36.3]} 11... Bb7 {[%clk 0:02:30.1]} 12. Rfd1 {[%clk 0:02:31.7]}
12... Qc7 {[%clk 0:02:28]} 13. Rac1 {[%clk 0:02:29.5]} 13... Rfe8 {[%clk
0:02:21.5]} 14. b4 {[%clk 0:02:19.6]} 14... Rac8 {[%clk 0:02:20.8]} 15. a3
{[%clk 0:02:16.2]} 15... Bf8 {[%clk 0:02:20.3]} 16. h3 {[%clk 0:02:12.1]} 16...
Qb8 {[%clk 0:02:16.7]} 17. Bf1 {[%clk 0:02:07.6]} 17... Qa8 {[%clk 0:02:08.8]}
18. Re1 {[%clk 0:01:59.1]} 18... Red8 {[%clk 0:02:04.1]} 19. Rcd1 {[%clk
0:01:55.9]} 19... Bc6 {[%clk 0:01:55.4]} 20. Qe3 {[%clk 0:01:39.2]} 20... Qb8
{[%clk 0:01:46.4]} 21. Nd4 {[%clk 0:01:34.3]} 21... Bb7 {[%clk 0:01:43.4]} 22.
f4 {[%clk 0:01:33.8]} 22... g6 {[%clk 0:01:16.6]} 23. f5 {[%clk 0:01:31.9]}
23... Re8 {[%clk 0:01:11.5]} 24. fxe6 {[%clk 0:01:28.6]} 24... fxe6 {[%clk
0:01:11.4]} 25. Nf3 {[%clk 0:01:12]} 25... Bg7 {[%clk 0:01:04.7]} 26. Rd2 {[%clk
0:01:05]} 26... Qc7 {[%clk 0:00:51.1]} 27. Red1 {[%clk 0:01:03.4]} 27... Bf8
{[%clk 0:00:39]} 28. Qf4 {[%clk 0:00:50.1]} 28... e5 {[%clk 0:00:36.9]} 29. Qe3
{[%clk 0:00:40.3]} 29... Qc6 {[%clk 0:00:37.2]} 30. Bd3 {[%clk 0:00:29.4]} 30...
Qc7 {[%clk 0:00:26.8]} 31. Rf1 {[%clk 0:00:29.1]} 31... Qd8 {[%clk 0:00:25.3]}
32. Rdf2 {[%clk 0:00:29.1]} 32... Bg7 {[%clk 0:00:23.5]} 33. Ng5 {[%clk
0:00:28.8]} 33... Bh6 {[%clk 0:00:20.2]} 34. Bc1 {[%clk 0:00:24.8]} 34... Qe7
{[%clk 0:00:19.7]} 35. h4 {[%clk 0:00:18.4]} 35... Ng4 {[%clk 0:00:17.8]} 36.
Qg3 {[%clk 0:00:17.6]} 36... Nxf2 {[%clk 0:00:18.1]} 37. Rxf2 {[%clk 0:00:18]}
37... Rf8 {[%clk 0:00:18.4]} 38. c5 {[%clk 0:00:15.7]} 38... b5 {[%clk
0:00:10.2]} 39. Rxf8+ {[%clk 0:00:08.2]} 39... Rxf8 {[%clk 0:00:09.8]} 40. Nd5
{[%clk 0:00:05.9]} 40... Bxd5 {[%clk 0:00:09.5]} 41. exd5 {[%clk 0:00:06.8]}
41... Bxg5 {[%clk 0:00:08]} 42. Bxg5 {[%clk 0:00:05.4]} 42... Qf7 {[%clk
0:00:08.5]} 43. h5 {[%clk 0:00:03.3]} 43... Nf6 {[%clk 0:00:06.8]} 44. hxg6
{[%clk 0:00:02.7]} 44... hxg6 {[%clk 0:00:07.7]} 45. Bxf6 {[%clk 0:00:01.4]}
45... Qxf6 {[%clk 0:00:07.6]} 46. Bxg6 {[%clk 0:00:01.5]} 46... Qf1+ {[%clk
0:00:06.8]} 0-1